bitfinex/quotes_SOLUSD_20260305
["timestamp","ask_amount","ask_price","bid_price","bid_amount"]
[1772707735425,1.07086296,92.459,92.43,11.01891383]
[1772707736740,1.07086296,92.477,92.433,1.01410759]
[1772707737825,1.07086296,92.475,92.435,1.01410759]
[1772707739834,10.81294353,92.482,92.437,1.01410759]
[1772707740534,1.07086296,92.481,92.437,1.01410759]
[1772707740830,1.07086296,92.479,92.437,1.01410759]
[1772707742136,1.07086296,92.479,92.438,37.86321642]
[1772707742436,1.07086296,92.479,92.439,1.01410759]
[1772707742638,11.88421757,92.479,92.439,1.01410759]
[1772707743141,10.81335461,92.479,92.439,1.01410759]
[1772707743440,11.88421757,92.479,92.439,1.01410759]
[1772707743832,1.07086296,92.478,92.44,10.81782778]
[1772707744139,1.07086296,92.478,92.441,1.01410759]
[1772707745430,1.07086296,92.488,92.441,1.01410759]
[1772707746853,1.07086296,92.486,92.443,1.01410759]
[1772707748644,10.81174548,92.493,92.443,1.01410759]
[1772707748941,1.07086296,92.493,92.445,1.01410759]
[1772707749724,1.07086296,92.469,92.435,10.81841293]
[1772707749926,1.07086296,92.469,92.436,1.01410759]
[1772707750729,1.07086296,92.479,92.436,1.01410759]
[1772707751842,1.07086296,92.477,92.438,1.01410759]
[1772707753043,1.07086296,92.469,92.438,1.01410759]
[1772707753939,10.81293898,92.482,92.44,1.01410759]
[1772707754729,1.07086296,92.485,92.44,1.01410759]
[1772707754931,1.07086296,92.497,92.44,1.01410759]
[1772707755753,1.07086296,92.497,92.443,1.01410759]
[1772707756061,1.07086296,92.497,92.449,1.01410759]
[1772707756226,1.07086296,92.496,92.449,1.01410759]
[1772707757430,11.88225817,92.495,92.451,1.01410759]
[1772707757633,1.07086296,92.494,92.451,1.01410759]
[1772707758328,1.07086296,92.509,92.451,1.01410759]
[1772707758530,1.07086296,92.508,92.452,0.28432314]
[1772707758723,1.07086296,92.508,92.454,1.13163961]
[1772707758942,1.07086296,92.508,92.456,1.13163961]
[1772707759146,1.07086296,92.508,92.457,1.13163961]
[1772707759445,1.07086296,92.508,92.46,1.13163961]
[1772707759653,1.09031447,92.506,92.46,1.13163961]
[1772707760738,1.09031447,92.506,92.462,1.13163961]
[1772707761243,1.09031447,92.504,92.462,1.13163961]
[1772707761650,1.09031447,92.499,92.462,1.13163961]
[1772707762437,1.09031447,92.497,92.463,37.85297902]
[1772707763817,1.09031447,92.497,92.464,1.13163961]
[1772707764062,1.09031447,92.517,92.464,1.13163961]
[1772707764245,1.09031447,92.509,92.464,1.13163961]
[1772707765144,1.09031447,92.57,92.466,1.27380118]
[1772707765342,1.09031447,92.544,92.471,1.13163961]
[1772707765546,1.09031447,92.544,92.477,1.13163961]
[1772707765858,1.09031447,92.544,92.481,1.41596275]
[1772707766066,1.09031447,92.544,92.482,1.27380118]
[1772707766448,1.09031447,92.544,92.485,1.13163961]
[1772707767165,1.09031447,92.544,92.484,0.28432314]
[1772707767166,1.09833361,92.543,92.487,0.28432314]
[1772707767351,1.09833361,92.543,92.488,1.04336936]
[1772707769435,1.09833361,92.573,92.493,4.82477569]
[1772707769635,1.09833361,92.573,92.49,0.28432314]
[1772707769636,1.09833361,92.596,92.511,3.69383402]
[1772707769836,1.09833361,92.596,92.518,1.04336936]
[1772707770043,1.09833361,92.596,92.52,1.04336936]
[1772707770247,1.09833361,92.596,92.521,1.04336936]
[1772707770446,1.09833361,92.596,92.525,1.04336936]
[1772707770656,1.09833361,92.596,92.529,1.3276925]
[1772707770859,1.09833361,92.596,92.531,1.3276925]
[1772707771062,0.1,92.6,92.54,1.04336936]
[1772707771258,1.09833361,92.599,92.541,1.04336936]
[1772707771444,1.09833361,92.579,92.542,10.80590434]
[1772707771643,1.09833361,92.579,92.542,37.8206652]
[1772707773759,1.09833361,92.579,92.542,38.86403456]
[1772707773961,1.09833361,92.579,92.543,1.04336936]
[1772707775562,1.09833361,92.579,92.544,10.80567081]
[1772707775748,1.09833361,92.579,92.544,11.84904017]
[1772707775950,1.09833361,92.577,92.545,1.04336936]
[1772707776671,1.09833361,92.577,92.544,10.80567081]
[1772707776867,1.09833361,92.577,92.544,11.84904017]
[1772707777047,1.09833361,92.577,92.545,1.04336936]
[1772707778471,1.09833361,92.577,92.546,10.80543729]
[1772707779259,1.09833361,92.575,92.546,10.80543729]
[1772707780163,1.09833361,92.575,92.546,37.81903053]
[1772707780369,1.09833361,92.595,92.549,1.04336936]
[1772707780762,10.79983584,92.594,92.549,1.04336936]
[1772707780964,1.09833361,92.593,92.549,1.04336936]
[1772707781472,1.09833361,92.589,92.548,10.80520378]
[1772707782668,8.74242489,92.6,92.542,10.80590434]
[1772707782669,1.09833361,92.586,92.542,10.80590434]
[1772707782871,1.09833361,92.585,92.543,1.04336936]
[1772707784278,1.09833361,92.585,92.537,10.80639584]
[1772707784480,1.09833361,92.569,92.536,35.48028557]
[1772707784677,10.80286924,92.568,92.537,10.80648821]
[1772707784863,1.09833361,92.567,92.537,10.80648821]
[1772707785577,1.09833361,92.587,92.538,1.04336936]
[1772707785769,1.09833361,92.587,92.539,1.04336936]
[1772707785969,1.09833361,92.587,92.539,0.28432314]
[1772707786299,1.09833361,92.587,92.541,1.04336936]
[1772707786781,1.09833361,92.585,92.543,1.04336936]
[1772707787880,1.09833361,92.593,92.543,1.04336936]
[1772707788875,1.08177728,92.591,92.545,1.08772705]
[1772707790077,1.08177728,92.589,92.545,1.08772705]
[1772707790780,1.08177728,92.589,92.544,10.80567081]
[1772707793677,1.08177728,92.587,92.538,1.08772705]
[1772707794180,1.08177728,92.587,92.536,35.48028557]
[1772707794181,4.03162426,92.58,92.536,35.48028557]
[1772707794475,1.08177728,92.559,92.536,35.48028557]
[1772707795457,1.08177728,92.557,92.536,35.48028557]
[1772707796680,1.08177728,92.557,92.537,10.80648821]
[1772707797470,10.80426984,92.556,92.519,10.80848374]
[1772707797669,4.03162426,92.55,92.519,10.80848374]
[1772707798382,37.81494445,92.556,92.519,10.80848374]
[1772707798686,10.80426984,92.556,92.52,1.1614593]
[1772707799184,37.81494445,92.556,92.52,1.1614593]
[1772707801185,37.81494445,92.556,92.521,10.80835702]
[1772707802589,4.03162426,92.55,92.517,10.8087899]
[1772707802887,4.03162426,92.55,92.479,1.1614593]
[1772707803185,4.03162426,92.55,92.48,1.44578244]
[1772707803186,0.28432314,92.549,92.48,1.44578244]
[1772707803877,0.28432314,92.549,92.48,1.1614593]
[1772707804076,3.69383402,92.571,92.48,1.1614593]
[1772707804278,4.3159474,92.57,92.48,1.44578244]
[1772707804580,37.80963389,92.569,92.485,1.30362087]
[1772707804779,37.80963389,92.569,92.485,1.44578244]
[1772707804780,0.14216157,92.568,92.485,1.44578244]
[1772707804972,0.28432314,92.568,92.485,1.44578244]
[1772707805679,0.02138406,92.567,92.485,1.44578244]
[1772707807792,0.02594677,92.539,92.49,1.1614593]
[1772707807975,91.82538052,92.567,92.486,37.8435655]
[1772707807976,0.02594677,92.559,92.492,1.44578244]
[1772707808286,0.02594677,92.559,92.494,1.1614593]
[1772707808494,0.02594677,92.559,92.494,1.44578244]
[1772707810000,0.02594677,92.559,92.496,1.44578244]
[1772707811090,37.81126774,92.565,92.496,1.44578244]
[1772707811395,0.03259431,92.564,92.496,1.44578244]
[1772707811581,0.03259431,92.564,92.499,1.1614593]
[1772707812479,0.03476931,92.559,92.499,1.1614593]
[1772707814685,0.03901657,92.558,92.501,1.1614593]
[1772707816810,0.04523377,92.549,92.503,1.1614593]
[1772707818184,0.04725583,92.558,92.503,1.1614593]
[1772707820711,0.94134797,107.67,92.508,1.44578244]
[1772707820712,10.79925269,92.599,92.508,1.44578244]
[1772707820886,0.05508966,92.598,92.52,1.30362087]
[1772707821085,0.05508966,92.598,92.52,1.1614593]
[1772707821388,10.79925269,92.599,92.52,1.1614593]
[1772707821389,0.05508966,92.559,92.52,1.1614593]
[1772707822101,0.056998,92.566,92.52,1.1614593]
[1772707822687,0.056998,92.566,92.522,1.1614593]
[1772707823088,0.0588957,92.576,92.522,1.1614593]
[1772707825008,0.0588957,92.576,92.524,1.1614593]
[1772707825587,0.0626217,92.569,92.524,1.1614593]
[1772707825790,0.06444524,92.539,92.507,3.69383402]
[1772707825983,4.03162426,92.52,92.494,10.81151209]
[1772707826790,4.03162426,92.53,92.495,1.19368192]
[1772707826989,10.80742253,92.529,92.494,10.81151209]
[1772707827907,10.80742253,92.529,92.488,10.81221347]
[1772707828107,10.80742253,92.529,92.489,1.19368192]
[1772707828507,0.28432314,92.549,92.489,1.19368192]
[1772707828714,10.80520378,92.548,92.489,1.47800506]
[1772707829318,4.03162426,92.57,92.492,1.47800506]
[1772707829613,43.1827155,92.63,92.492,1.47800506]
[1772707829614,4.03162426,92.59,92.497,1.19368192]
[1772707830121,4.03162426,92.58,92.502,1.19368192]
[1772707830296,4.03162426,92.58,92.502,1.47800506]
[1772707831327,4.03162426,92.56,92.502,1.19368192]
[1772707832097,4.03162426,92.56,92.504,1.19368192]
[1772707832817,4.03162426,92.54,92.504,1.19368192]
[1772707833011,0.55443035,92.539,92.504,0.65346993]
[1772707833416,0.55443035,92.549,92.504,0.65346993]
[1772707833916,0.55651956,92.559,92.504,0.65346993]
[1772707834527,0.55651956,92.557,92.505,37.83579265]
[1772707834699,10.80403638,92.558,92.505,37.83579265]
[1772707834900,10.80403638,92.558,92.506,1.08435222]
[1772707835401,10.80203636,92.576,92.508,1.08435222]
[1772707835604,10.80203636,92.576,92.509,1.36867536]
[1772707835805,10.80203636,92.576,92.51,1.08435222]
[1772707836013,0.55858507,92.579,92.51,1.08435222]
[1772707836201,11.36017074,92.579,92.51,1.08435222]
[1772707836832,0.56263573,92.578,92.516,1.08435222]
[1772707837127,0.56263573,92.578,92.517,1.22651379]
[1772707837306,0.56263573,92.578,92.519,1.08435222]
[1772707837620,0.56263573,92.578,92.521,1.08435222]
[1772707839507,0.56662061,92.576,92.523,1.08435222]
[1772707841101,4.03569151,92.58,92.523,1.08435222]
[1772707841303,10.80138638,92.581,92.523,1.08435222]
[1772707841501,4.03569151,92.58,92.525,1.08435222]
[1772707841722,0.57239231,92.569,92.525,1.08435222]
[1772707842321,0.57239231,92.579,92.525,1.08435222]
[1772707844012,10.80170234,92.578,92.526,37.82720532]
[1772707844212,0.57612205,92.577,92.527,1.08435222]
[1772707845129,0.57796031,92.569,92.527,1.08435222]
[1772707845437,37.80595821,92.578,92.527,1.08435222]
[1772707845438,0.57796031,92.559,92.527,1.08435222]
[1772707845611,0.57796031,92.559,92.526,10.80777295]
[1772707847030,10.80403638,92.558,92.519,1.08435222]
[1772707847211,0.58157757,92.566,92.519,1.08435222]
[1772707847418,0.58157757,92.577,92.521,1.08435222]
[1772707847607,0.58157757,92.569,92.521,1.08435222]
[1772707850637,0.5885352,92.567,92.523,1.19873462]
[1772707852041,0.5919042,92.579,92.523,1.19873462]
[1772707852742,10.80170234,92.578,92.525,1.19873462]
[1772707852939,0.59356137,92.577,92.525,1.19873462]
[1772707854731,10.80170234,92.578,92.527,1.19873462]
[1772707854930,0.5968207,92.588,92.527,1.19873462]
[1772707854931,0.5968207,92.588,92.527,1.48305776]
[1772707855127,8.74551888,92.6,92.53,1.48305776]
[1772707855128,0.1,92.6,92.53,1.48305776]
[1772707855436,0.1,92.6,92.537,1.48305776]
[1772707855635,0.1,92.6,92.539,1.48305776]
[1772707855840,0.1,92.6,92.541,1.48305776]
[1772707856041,10.7966276,92.622,92.548,1.19873462]
[1772707856435,0.69842165,92.621,92.55,1.48305776]
[1772707856745,0.70007611,92.619,92.554,1.48305776]
[1772707857321,0.70007611,92.619,92.556,1.19873462]
[1772707857531,0.70007611,92.619,92.556,1.48305776]
[1772707858323,10.79680414,92.62,92.558,1.19873462]
[1772707858524,0.701699,92.636,92.558,1.48305776]
[1772707858739,0.70331211,92.634,92.563,1.19873462]
[1772707858928,0.70331211,92.634,92.563,1.48305776]
[1772707859527,0.70331211,92.629,92.563,1.48305776]
[1772707860429,0.70490815,92.639,92.564,1.48305776]
[1772707860623,0.1,92.64,92.578,1.19873462]
[1772707860823,0.1,92.64,92.583,1.48305776]
[1772707861029,0.70649424,92.629,92.583,1.19873462]
[1772707861445,0.1,92.64,92.583,1.48305776]
[1772707861745,0.1,92.64,92.588,1.48305776]
[1772707862337,0.80805161,92.64,92.588,1.48305776]
[1772707862733,0.80805161,92.64,92.59,1.48305776]
[1772707863041,0.1,92.64,92.594,1.19873462]
[1772707863629,10.8945119,92.64,92.594,1.19873462]
[1772707864342,11.60562612,92.64,92.594,1.19873462]
[1772707864546,0.71111422,92.639,92.594,1.19873462]
[1772707864841,10.8945119,92.64,92.594,1.19873462]
[1772707865343,0.1,92.64,92.596,1.19873462]
[1772707866527,0.1,92.64,92.598,1.48305776]
[1772707867023,0.81557784,92.64,92.598,1.48305776]
[1772707867955,0.7170321,92.639,92.598,1.19873462]
[1772707868328,0.7170321,92.639,92.597,10.79948594]
[1772707868528,0.7170321,92.637,92.592,1.19873462]
[1772707869341,10.79470627,92.638,92.592,1.19873462]
[1772707869857,0.71989053,92.637,92.592,1.19873462]
[1772707871162,0.72129378,92.635,92.594,1.19873462]
[1772707871840,10.79493933,92.636,92.594,1.19873462]
[1772707872438,0.1,92.64,92.594,1.19873462]
[1772707873161,0.1,92.64,92.596,1.19873462]
[1772707875165,0.1,92.64,92.598,1.19873462]
[1772707875335,0.82672443,92.64,92.598,1.19873462]
[1772707877757,11.52396086,92.639,92.6,1.19873462]
[1772707877961,0.1,92.64,92.6,1.48305776]
[1772707878859,27.08050102,92.66,92.6,1.48305776]
[1772707878860,1e-08,92.66,92.605,1.17902676]
[1772707879060,43.13294465,92.737,92.613,1.17902676]
[1772707879061,0.73320586,92.69,92.613,1.17902676]
[1772707879250,43.13294465,92.737,92.63,1.17902676]
[1772707879251,10.78822924,92.694,92.63,1.17902676]
[1772707879441,0.73320586,92.689,92.63,1.17902676]
[1772707879640,0.73320586,92.689,92.622,0.28432314]
[1772707879641,0.73320586,92.689,92.635,1.17902676]
[1772707879855,0.73320586,92.689,92.635,1.4633499]
[1772707879856,10.78884992,92.689,92.635,1.4633499]
[1772707880158,10.78816498,92.695,92.635,1.4633499]
[1772707880541,11.45546556,92.691,92.635,1.4633499]
[1772707880863,0.73567918,92.689,92.635,1.17902676]
[1772707881045,0.73567918,92.679,92.635,1.17902676]
[1772707881252,0.66689323,92.691,92.635,1.17902676]
[1772707881446,0.66689323,92.691,92.635,1.4633499]
[1772707881641,0.66689323,92.691,92.643,1.17902676]
[1772707882860,0.73808605,92.69,92.643,1.17902676]
[1772707883443,0.66689323,92.691,92.643,1.17902676]
[1772707884240,0.66689323,92.691,92.645,1.4633499]
[1772707885448,0.74160439,92.689,92.645,1.4633499]
[1772707886260,0.74160439,92.689,92.647,1.42649024]
[1772707886451,0.66689323,92.691,92.647,1.42649024]
[1772707888174,0.66689323,92.691,92.652,1.1421671]
[1772707888467,0.66689323,92.691,92.652,1.42649024]
[1772707889041,10.78865033,92.69,92.652,1.42649024]
[1772707889266,0.74608878,92.689,92.652,1.1421671]
[1772707889566,0.74608878,92.689,92.648,10.79354114]
[1772707889746,0.74608878,92.689,92.649,1.1421671]
[1772707889953,0.66689323,92.691,92.649,1.1421671]
[1772707890266,11.45550866,92.691,92.651,1.1421671]
[1772707891160,0.66689323,92.691,92.651,1.1421671]
[1772707891559,0.74825022,92.689,92.65,10.79330814]
[1772707891746,0.74931552,92.679,92.639,1.1421671]
[1772707892971,0.75036612,92.69,92.641,1.1421671]
[1772707893146,0.75036612,92.689,92.641,1.1421671]
[1772707893870,0.75139377,92.688,92.643,1.1421671]
[1772707894062,10.78899953,92.687,92.643,1.1421671]
[1772707894260,11.5403933,92.687,92.643,1.1421671]
[1772707895578,0.75241886,92.686,92.643,1.1421671]
[1772707895951,0.66689323,92.691,92.645,1.42649024]
[1772707896455,11.45550208,92.691,92.645,1.42649024]
[1772707896660,0.75343114,92.69,92.645,1.42649024]
[1772707897978,0.75542342,92.688,92.646,10.79377415]
[1772707898357,0.75542342,92.688,92.607,4.82477569]
[1772707898358,0.75542342,92.669,92.609,1.1421671]
[1772707898682,0.75542342,92.688,92.616,1.42649024]
[1772707898854,0.75542342,92.688,92.609,125.25780428]
[1772707898855,0.66689323,92.691,92.629,1.42649024]
[1772707899047,0.66689323,92.691,92.637,3.69383402]
[1772707899253,0.66689323,92.691,92.638,1.42649024]
[1772707899477,0.66689323,92.691,92.64,1.42649024]
[1772707899677,10.88522895,92.72,92.656,1.42649024]
[1772707899853,0.1,92.72,92.66,1.1421671]
[1772707900050,6.71290781,92.757,92.68,4.82477569]
[1772707900350,10.77713953,92.789,92.708,1.25225331]
[1772707900553,8.62221301,92.77,92.708,1.25225331]
[1772707900752,8.62221301,92.77,92.703,0.14216157]
[1772707900753,8.62221301,92.78,92.71,1.39441488]
[1772707900965,37.71998835,92.789,92.71,1.25225331]
[1772707901267,8.62221301,92.78,92.71,1.25225331]
[1772707901468,37.71998835,92.789,92.712,1.25225331]
[1772707901673,8.62221301,92.77,92.712,1.25225331]
[1772707901873,37.71998835,92.789,92.712,1.25225331]
[1772707902054,37.71998835,92.789,92.688,1.07888831]
[1772707902055,10.77713953,92.789,92.718,1.25225331]
[1772707902252,10.77713953,92.789,92.718,1.53657645]
[1772707902253,8.62221301,92.78,92.718,1.53657645]
[1772707902459,10.77713953,92.789,92.718,1.53657645]
[1772707902655,10.77713953,92.789,92.726,1.25225331]
[1772707903086,0.1,92.79,92.726,1.25225331]
[1772707903651,8.72221301,92.79,92.726,1.25225331]
[1772707904153,8.72221301,92.79,92.714,37.75050153]
[1772707904154,8.62221301,92.78,92.731,1.25225331]
[1772707904571,8.62221301,92.77,92.731,1.25225331]
[1772707904874,8.62221301,92.75,92.686,4.82477569]
[1772707905059,8.62221301,92.75,92.687,1.25225331]
[1772707905658,8.62221301,92.74,92.687,1.25225331]
[1772707905859,8.62221301,92.73,92.687,1.25225331]
[1772707906402,8.62221301,92.73,92.682,0.28432314]
[1772707906403,37.74439495,92.729,92.689,1.25225331]
[1772707906575,4.82477569,92.778,92.661,1.25225331]
[1772707906758,10.77713953,92.789,92.68,1.53657645]
[1772707906950,26.94488155,92.782,92.701,1.25225331]
[1772707907199,10.77713953,92.789,92.691,8.51860971]
[1772707907200,10.77713953,92.789,92.713,1.25225331]
[1772707907473,10.77713953,92.789,92.723,1.25225331]
[1772707908363,10.77713953,92.789,92.725,1.53657645]
[1772707908982,10.77713953,92.789,92.727,1.53657645]
[1772707909377,10.77713953,92.789,92.73,1.25225331]
[1772707909675,0.1,92.79,92.732,1.53657645]
[1772707909676,8.72221301,92.79,92.732,1.53657645]
[1772707910576,0.1,92.79,92.732,1.53657645]
[1772707910881,8.72221301,92.79,92.732,1.53657645]
[1772707912085,8.62221301,92.78,92.734,1.25225331]
[1772707912386,37.71998835,92.789,92.734,1.25225331]
[1772707912674,37.71998835,92.789,92.724,1.25225331]
[1772707912675,8.62221301,92.77,92.724,1.25225331]
[1772707912873,8.62221301,92.77,92.725,1.25225331]
[1772707913074,80.82854647,92.789,92.726,1.25225331]
[1772707913075,8.62221301,92.78,92.726,1.25225331]
[1772707913281,37.71998835,92.789,92.726,1.53657645]
[1772707913474,37.71998835,92.789,92.728,1.53657645]
[1772707913777,0.0211773,92.788,92.728,1.53657645]
[1772707913987,10.77713953,92.789,92.73,1.25225331]
[1772707914157,0.1,92.79,92.732,1.53657645]
[1772707914365,0.1,92.79,92.734,1.53657645]
[1772707914577,0.1,92.79,92.736,1.53657645]
[1772707914782,0.1,92.79,92.738,1.39441488]
[1772707914979,0.1,92.79,92.74,1.53657645]
[1772707915183,0.1,92.79,92.742,1.53657645]
[1772707915389,0.1,92.79,92.744,1.53657645]
[1772707915590,0.1,92.79,92.746,1.53657645]
[1772707915761,0.1,92.79,92.748,1.39441488]
[1772707915964,0.1,92.79,92.748,1.53657645]
[1772707916182,0.1,92.79,92.75,1.53657645]
[1772707918577,0.1,92.79,92.752,0.28432314]
[1772707918782,0.1,92.79,92.753,1.25225331]
[1772707920975,0.1,92.79,92.755,1.25225331]
[1772707921407,0.1,92.79,92.755,1.53657645]
[1772707922280,0.1,92.79,92.756,1.25192911]
[1772707922969,0.1,92.79,92.754,37.7342217]
[1772707922970,0.1,92.79,92.758,1.53625225]
[1772707926475,0.1,92.79,92.76,1.53625225]
[1772707928878,1.13769005,92.789,92.727,64.70607266]
[1772707929075,1.13769005,92.789,92.728,1.07842291]
[1772707929275,1.13769005,92.789,92.73,3.69383402]
[1772707929482,1.13769005,92.789,92.731,1.07838802]
[1772707929787,1.13769005,92.789,92.731,1.36271116]
[1772707930296,0.1,92.79,92.739,3.69383402]
[1772707930470,0.1,92.79,92.741,0.28432314]
[1772707930799,1.23769005,92.79,92.744,0.28432314]
[1772707930971,1.23769005,92.79,92.743,37.73869725]
[1772707930972,1.13769005,92.788,92.747,1.25192911]
[1772707933594,1.13769005,92.788,92.743,37.73869725]
[1772707933595,1.13769005,92.786,92.744,10.78236867]
[1772707933776,1.13769005,92.786,92.745,1.25192911]
[1772707934494,10.77737183,92.787,92.724,1.25192911]
[1772707934495,1.13769005,92.779,92.724,1.25192911]
[1772707934795,1.13769005,92.769,92.724,1.25192911]
[1772707934975,11.91506188,92.787,92.726,1.25192911]
[1772707935183,0.1,92.79,92.728,1.39409068]
[1772707935493,0.1,92.79,92.719,91.67484549]
[1772707935494,0.1,92.79,92.739,1.25192911]
[1772707935698,0.1,92.79,92.742,1.25192911]
[1772707935873,0.1,92.79,92.744,1.53625225]
[1772707936069,0.1,92.79,92.746,1.53625225]
[1772707936294,0.1,92.79,92.748,1.53625225]
[1772707936983,0.1,92.79,92.75,1.53625225]
[1772707937578,0.1,92.79,92.753,1.25192911]
[1772707939775,0.1,92.79,92.755,1.54851399]
[1772707941282,0.1,92.79,92.756,1.07809737]
[1772707941595,1.20448842,92.817,92.759,1.26419085]
[1772707941804,1.20448842,92.817,92.763,1.26419085]
[1772707941999,1.20448842,92.817,92.765,1.26419085]
[1772707942380,1.20448842,92.817,92.766,1.54851399]
[1772707942707,1.20448842,92.816,92.768,1.54851399]
[1772707943802,1.20448842,92.814,92.769,10.77946296]
[1772707943985,1.20448842,92.814,92.769,37.72812037]
[1772707944302,1.20448842,92.814,92.77,1.26419085]
[1772707945390,1.20448842,92.812,92.772,1.26419085]
[1772707947092,43.06353262,92.887,92.772,1.26419085]
[1772707947093,1.20448842,92.821,92.774,1.26419085]
[1772707947404,1.20448842,92.821,92.776,1.26419085]
[1772707947580,1.20448842,92.821,92.776,1.54851399]
[1772707947986,1.20448842,92.821,92.778,1.49627532]
[1772707949307,1.16388897,92.828,92.78,1.49627532]
[1772707951300,1.16388897,92.826,92.782,1.49627532]
[1772707952809,1.16388897,92.835,92.782,1.49627532]
[1772707953013,43.05522926,92.904,92.782,1.49627532]
[1772707953014,1.16388897,92.843,92.782,1.49627532]
[1772707953202,1.16388897,92.843,92.783,1.21195218]
[1772707953518,1.16388897,92.843,92.788,1.49627532]
[1772707953699,1.16388897,92.843,92.79,1.49627532]
[1772707953900,1.16388897,92.843,92.792,1.49627532]
[1772707954100,1.16388897,92.843,92.794,1.49627532]
[1772707954614,1.16388897,92.87,92.798,8.51860971]
[1772707954801,1.16388897,92.87,92.8,1.21195218]
[1772707955310,1.16388897,92.868,92.807,1.21195218]
[1772707955514,1.16388897,92.868,92.809,1.49627532]
[1772707955699,1.16388897,92.875,92.809,1.49627532]
[1772707956007,1.16388897,92.875,92.811,1.49627532]
[1772707956323,1.16388897,92.892,92.813,1.49627532]
[1772707956491,1.16388897,92.892,92.812,1.36177002]
[1772707956492,1.16388897,92.876,92.819,3.69383402]
[1772707956691,1.16388897,92.876,92.821,1.21195218]
[1772707956897,1.16388897,92.876,92.821,1.49627532]
[1772707957097,1.16388897,92.884,92.821,1.49627532]
[1772707957302,10.75858804,92.949,92.832,4.9057862]
[1772707957610,10.75858804,92.949,92.831,4.82477569]
[1772707957611,4.00550166,92.94,92.862,1.21195218]
[1772707957829,4.00550166,92.92,92.862,1.21195218]
[1772707957998,10.75858804,92.949,92.862,1.21195218]
[1772707957999,4.00550166,92.91,92.862,1.21195218]
[1772707958329,4.00550166,92.92,92.862,1.21195218]
[1772707958693,4.00550166,92.89,92.842,1.21195218]
[1772707959212,1.0552066,92.889,92.842,1.21195218]
[1772707959410,0.14216157,92.923,92.837,31.73313159]
[1772707959411,1.0552066,92.877,92.838,10.77145134]
[1772707960001,1.0552066,92.877,92.838,37.7000797]
[1772707960711,1.0552066,92.877,92.839,1.21195218]
[1772707961211,1.06093877,92.888,92.839,1.21195218]
[1772707962415,1.06093877,92.888,92.841,1.21195218]
[1772707962601,1.06093877,92.888,92.841,1.49627532]
[1772707963136,1.06652973,92.919,92.841,1.49627532]
[1772707963334,1.06652973,92.919,92.844,1.49627532]
[1772707964414,1.06926875,92.917,92.849,1.49627532]
[1772707965220,1.07198398,92.909,92.849,1.49627532]
[1772707965424,1.07198398,92.909,92.849,1.21195218]
[1772707966641,1.07465809,92.907,92.851,1.21195218]
[1772707967525,10.01865523,92.9,92.851,1.21195218]
[1772707967716,1.07730137,92.899,92.85,37.69520731]
[1772707967912,1.07730137,92.899,92.851,1.21195218]
[1772707968624,10.76449439,92.898,92.853,1.21195218]
[1772707968829,1.08503997,92.897,92.853,1.21195218]
[1772707970432,7.46011863,93.03,92.853,1.31730145]
[1772707970729,10.01865523,92.94,92.858,1.31730145]
[1772707970941,10.01865523,92.93,92.858,1.60162459]
[1772707973044,10.76090348,92.929,92.86,1.60162459]
[1772707973348,17.47877386,93.03,92.86,1.60162459]
[1772707973349,0.2849773,92.979,92.867,3.69383402]
[1772707973524,0.2849773,92.979,92.879,1.31730145]
[1772707973725,0.2849773,92.979,92.893,1.60162459]
[1772707973932,0.2849773,92.979,92.904,1.31730145]
[1772707974138,0.2849773,92.979,92.893,13.12831614]
[1772707974139,10.11865523,93.01,92.911,1.31730145]
[1772707974338,10.75280379,92.999,92.911,1.60162459]
[1772707974726,10.01865523,92.99,92.911,1.60162459]
[1772707974919,10.75280379,92.999,92.916,1.31730145]
[1772707975249,37.63481327,92.999,92.916,1.31730145]
[1772707975424,10.01865523,92.97,92.916,1.31730145]
[1772707975826,0.02196058,92.969,92.916,1.31730145]
[1772707976655,0.02196058,92.959,92.916,1.31730145]
[1772707976821,0.02196058,92.959,92.918,1.31730145]
[1772707977621,10.78133544,92.969,92.918,1.31730145]
[1772707977832,0.02811684,92.968,92.918,1.31730145]
[1772707978034,0.02811684,92.959,92.918,1.31730145]
[1772707978227,0.02811684,92.959,92.917,10.76229322]
[1772707978635,0.02811684,92.959,92.893,0.28432314]
[1772707978839,10.01865523,92.92,92.878,26.91698147]
[1772707979024,10.75824081,92.952,92.873,1.3323471]
[1772707979232,10.01865523,92.93,92.873,1.3323471]
[1772707980326,10.01865523,92.91,92.872,37.68627787]
[1772707980527,10.01865523,92.92,92.872,10.76750796]
[1772707980935,0.14216157,92.951,92.863,37.68993032]
[1772707980936,10.01865523,92.91,92.863,37.68993032]
[1772707981134,10.76321992,92.909,92.863,37.68993032]
[1772707981338,10.76206158,92.919,92.864,1.3323471]
[1772707981631,10.01865523,92.91,92.864,1.3323471]
[1772707981836,10.01865523,92.9,92.856,10.76930219]
[1772707982051,37.66721553,92.919,92.748,76.24877907]
[1772707982052,10.01865523,92.89,92.842,10.77098726]
[1772707982257,37.66721553,92.919,92.838,31.73313159]
[1772707982258,10.01865523,92.87,92.838,31.73313159]
[1772707982566,10.01865523,92.86,92.816,1.3323471]
[1772707982854,10.01865523,92.86,92.81,18.6164356]